{"text_format":"3","workbook":"xlsx","n_sheets":1,"sheets":["申請表"],"not_rendered":{"defined_names":2},"read":"whole","date_system":"1900"}

{"sheet":"申請表","index":0,"n_rows":70,"n_cols":11,"rows_kept":70,"merged":[[0,0,0,6],[1,0,1,6],[4,0,4,4],[4,5,4,6],[5,0,5,6],[6,0,6,6],[7,0,7,6],[8,0,8,6],[9,0,9,6],[10,0,10,6],[11,0,11,6],[12,0,12,6],[13,0,13,6],[14,0,14,6],[15,0,15,6],[16,0,16,6],[17,0,18,1],[17,2,17,6],[18,3,18,4],[19,0,31,0],[19,6,30,6],[24,1,25,1],[26,1,27,1],[28,1,29,1],[31,1,31,4],[32,0,55,0],[39,1,40,1],[39,6,40,6],[55,1,55,4],[56,0,58,0],[56,6,57,6],[58,1,58,4],[59,0,59,4],[64,0,64,6],[65,0,65,6],[66,0,66,6],[67,1,67,6],[68,1,68,6],[69,1,69,6]]}
["1.本表為經費編列參考表，請依據「教育部補助及委辦經費核撥結報作業要點」編列經費項目，並注意與計畫內容須有相依性，項目說明應敘明需求及相關計算公式，儲存格文字須完整呈現，說明文字須12字級，請刪除未編列項目以及與編列經費無關之說明文字。（本表已設定列印範圍）\n2.新製課程及精進課程之經費項目需分開條列計算。精進課程之經費項目分攤請填入K欄。\n3.經費編列工作坊將於徵件公告後擇期辦理，請經費編列人員屆時務必出席。",{"$nulls":7},"凡經費項目含製作課程的人力（專業人員、專兼任助理、錄製鐘點費、委外錄製費、工作費及工讀費等）薪津總合，不得超過教育部補助經費總額之60%。","已列健保之經費不得重複編列補充保費。","精進課程每門以20萬元為限，自行填入各項目分攤金額。"]
["教育部補助磨課師系列課程計畫項目經費",{"$nulls":7},"課程製作60%人力計算","補充保費驗算","精進課程計算"]
[{"$nulls":6},"▓申請表",null,"申請補助金額（請自行修改）"]
[{"$nulls":6},"□核定表",null,{"v":300000,"d":"300,000"},null,"精進課程名稱A"]
["申請單位：ＯＯＯＯ大學",{"$nulls":4},"計畫名稱：ＯＯＯＯ大學ＯＯＯＯ系列課程計畫",null,null,"不含自籌款之人力合計金額（自動計算）",null,"精進課程名稱B"]
["計畫期程：106年7月1日至107年12月31日",{"$nulls":7},{"$f":"SUM(I20:I55)","v":0},null,"精進課程名稱C"]
["計畫經費總額：（填入申請補助+自籌款合計金額）元，向本部申請補助金額：（填入金額）元，自籌款：（填入金額）元",{"$nulls":7},"比率（自動計算）"]
["擬向其他機關與民間團體申請補助：□無□有(若勾選無，請刪除本表第9、10、11列）",{"$nulls":7},{"$f":"I6/I4","v":{"v":0,"d":"0.00%"}}]
["（請註明其他機關與民間團體申請補助經費之項目及金額）"]
["       教育部：              元，補助項目及金額："]
["       ＯＯＯ部：………………元，補助項目及金額："]
["本部核定補助金額：○○○元，經常門○○○元，資本門○○○元（核定後填寫）。"]
["第1期核定補助金額：○○○元，經常門○○○元，資本門○○○元。"]
["第2期核定補助金額：○○○元，經常門○○○元，資本門0元。"]
["本案為部分補助(指定項目補助□是▓否)，補助比例○○.○○％（申請補助金額/計畫經費總額，百分比填寫至小數點後2位），補助依據：教育部補助推動人文及科技教育先導型計畫要點。"]
["餘款繳回方式：繳回 或 依教育部補助及委辦經費核撥結報作業要點第十一點辦理\n說明：繳回 - 適用於私立學校及未執行項目之經費；依教育部補助及委辦經費核撥結報作業要點第十一點辦理 - 使用於國立學校。確認餘款繳回方式後，請刪除本說明。"]
["本案人力○○位，主持人○位（含共同主持人），專任○位，兼任○位。"]
["經費項目",null,"計畫經費明細"]
[null,null,"單價(元)","數量",null,"總價(元)","說明"]
["人事費","主持人費",null,null,"人月",{"$f":"C20*D20","v":0},"1.主持人費及共同主持人費請詳列說明及算式，課程授課教師得任計畫共同主持人，惟不得兼領錄製鐘點費。\n2.視全校總體規劃及個別課程需求，聘用數位課程設計師、數位媒體設計師、程式設計師與工程師等專業人員，其薪資可比照國科會補助專題研究計畫助理人員工作酬金參考表，或以主計總處公告計畫執行前一年電腦系統設計服務業或資料處理及資訊供應服務業平均薪資，擇一標準計算。(例：聘用數位課程設計師、數位媒體設計師、程式設計師各1人，其薪資以主計總處公告計畫執行102年電腦系統設計服務業平均薪資51,143元為標準，本案以42,000元計，計需3人每人6個月，3人*6個月=18人月。)\n3.為處理○○○(工作項目)，得聘○○○(級別)專任助理，其薪資比照國科會補助專題研究計畫助理人員工作酬金參考表第○年之薪資計算。(例：為處理計畫經費及行政事務，聘用碩士級專任助理1位，薪資比照國科會補助專題研究計畫助理人員工作酬金參考表第1年之薪資36,050元計算。)註：續聘須將助理姓名標出，加註年資併計。\n4.為處理○○○(工作項目)，得聘兼任助理，每人每月以新臺幣5,000元為限，本計畫兼任人力為勞務型兼任助理。(例：為協助教師課程錄製及課程經營，聘用兼任助理3位，每人每月4,500元，3人*12個月=計需36人月。)\n5.專任人員若12月1日仍在職者，始得按當年工作月數依比例編列年終獎金。以○○○年○○月在職起算，至○○○年12月止，計○○○個月*○○○/12=○○○個月。\n6.計畫人力得編列勞健保費。\n專業人力投保薪資○○○元，勞保費○○○元+健保費○○○元=○○○元，○○○元*○○○人月=○○○元；\n專任助理投保薪資○○○元，勞保費○○○元+健保費○○○元=○○○元，○○○元*○○○人月=○○○元；\n兼任助理投保薪資○○○元，勞保費○○○元+健保費○○○元=○○○元，○○○元*○○○人月=○○○元。\n7.計畫人力得編列勞工退休金(以投保薪資6%計算，請詳列公式)。\n（例：專任助理提撥薪資○○○元*6%=○○○元，○○○元*○○○人月=○○○元。）\n8.主持人費、共同主持人費及專任人員年終獎金部分得編列補充保費，請詳列計算方式，確認驗算是否正確。\n（例：專任助理年終獎金63,000元*1.91%=1,203元。）\n",null,{"$f":"F20","v":0}]
[null,"共同主持人費",null,null,"人月",{"$f":"C21*D21","v":0},null,null,{"$f":"F21","v":0}]
[null,"專業人力",null,null,"人月",0,null,null,0]
[null,"專任助理",null,null,"人月",{"$f":"C23*D23","v":0},null,null,{"$f":"F23","v":0}]
[null,"兼任助理",null,null,"人月",0,null,null,0]
[null,"年終獎金",null,null,"月",0,{"$nulls":3},{"$f":"F25","v":0}]
[{"$nulls":4},"月",0,{"$nulls":3},{"$f":"F26","v":0}]
[null,"勞保費、健保費",null,null,"人月",0]
[{"$nulls":4},"人月",0]
[null,"勞退金",null,null,"月",0]
[{"$nulls":4},"月",0]
[null,"補充保費",null,null,"式",{"$f":"C31*D31","v":0},{"$nulls":3},{"$f":"ROUNDUP(((J25+J26)*1.91%),0)","v":0}]
[null,"人事費小計",{"$nulls":3},{"$f":"SUM(F20:F31)","v":0}]
["業務費","錄製鐘點費",null,null,"小時",0,"1.為開設磨課師課程，教師需錄製課程影音內容，得編列錄製鐘點費，其費用比照內聘講座鐘點費。1小時課程內容至多錄製○○小時，每門課○○小時，○○○*○○○*800元=○○○元。\n2.新製課程及精進課程需分開條列計算。\n3.課程授課教師任計畫共同主持人，不得兼領錄製鐘點費。\n（例：教師錄製磨課師課程，每小時錄製費比照內聘講座鐘點費800元支給。\n1.新製2門影音內容：○○課程6小時+○○課程9小時=15小時；1小時課程內容至多錄製10小時，15小時*10小時=錄製時間150小時；150小時*800元=120,000元。\n2.精進3門影音內容：○○課程3小時+○○課程2小時+○○課程5小時=10小時；1小時課程內容至多錄製4小時，10小時*4小時=錄製時間40小時；40小時*800元=32,000元。\n3.合計錄製時間150+40=190小時，190小時*800元=152,000元。）\n",null,{"$f":"F33","v":0},{"$f":"F33","v":0},32000]
[null,"材料費",null,null,"式",0,"以本案補助課程，授課中所需使用材料為限，不含紙張、文具、碳粉匣等一般耗材，及拍攝過程中使用之雜項。請詳列計算方式。\n（例：防寒潛水衣3,500元*6套=21,000元。花藝材料2,000元＊6次=12,000元。材料費21,000元+12,000元=33,000元。）\n"]
[null,"稿費",null,null,"式",0,"計畫執行之課程所需之撰稿、媒體使用及版權費用，採購之相關權利永久授權學校，且開放上網公開使用。請詳列計算方式。（例：測驗試題撰稿1萬字，電子書撰稿14萬字，共計15萬字=150千字，每千字580元，150千字*580元=87,000元；圖片版權500元*10張=5,000元；87,000+5,000=92,000元；上述撰稿及採購之相關權利永久授權學校，且開放上網公開使用。）\n",null,null,{"$f":"F35","v":0}]
[null,"講座鐘點費",null,null,"人節",0,"辦理研習會、座談會或訓練進修，邀請學者專家擔任授課人員支給講座鐘點費。\n（例：辦理磨課師專家座談會3場，每場邀請3位學者專家授課1人節，3場*3人*1人節=9人節；每節以外聘專家學者講座鐘點費1,600元支給；1,600元*9人節=14,400元，依「教育部補助及委辦計畫經費編列基準表」核實報支。）",null,null,{"$f":"F36","v":0}]
[null,"諮詢費",null,null,"人次",0,"針對各校磨課師執行階段諮詢學者專家，包括機制建立、課程製作及課程經營等，各校需就審查意見回覆改善，以利磨課師品質提升。\n（例：各邀請2位學者專家，就本校磨課師機制建立、課程製作及課程經營等3階段進行諮詢，3階段*2人=6人次，諮詢費每次2,000元；2,000元*6人次=12,000元，依「教育部補助及委辦計畫經費編列基準表」核實報支。）\n",null,null,{"$f":"F37","v":0}]
[null,"出席費",null,null,"人次",0,"邀請相關領域學者專家出席磨課師之計畫執行、永續經營及成效追蹤等會議，提供建議。\n（例：辦理磨課師OOO會議、OOO會議、OOO會議，共3場，每場邀請2位學者專家出席，3場*2人=6人次，每次出席費2,000元，2,000元*6人次=12,000元。）",null,null,{"$f":"F38","v":0}]
[null,"研討會主持費",null,null,"人次",0,"邀請校內外專家學者主持研討會場次，每人次新臺幣1,000元或2,000元。\n（例：辦理磨課師課程製作研討會1場、課程經營研討會1場，每場邀請4位學者擔任主持人，2場*4人=8人次，每次主持費2,000元，2,000元*8人次=16,000元。）\n",null,null,{"$f":"F39","v":0}]
[null,"交通差旅費",null,null,"人次",0,"依「國內出差旅費報支要點」核實支付。計畫成員參加工作坊、期末成果發表會及相關研習活動所需國內差旅費，請依下列格式列明計算式。\n（例：參加磨課師研討會4場、工作坊4場、發表會1場，共計9場；每門課每場出席2人；9場*3門*2人=54人次；預估會議地點臺中至臺北，高鐵來回1,530元+雜費400元=1,930元；1,930元*54人次=104,220元。）註：單價不同須分開列示。"]
[{"$nulls":4},"人次",0]
[null,"工作費(教材製作）",null,null,"人時",0,"為開設磨課師課程，協助課程錄製相關工作，得編列工作費，為勞務型臨時人力，唯人力不與工讀費重複，以現行勞動基準法所訂每人每小時最低基本工資○○○元支給，。\n(例：\n1. 協助影片剪輯後製2人，1小時課程內容剪輯後製4小時，課程總時數26小時，2人*4時*26小時=208人時。\n2. 協助課程錄製道具準備3人，每門課預估30小時，3人*30小時=90人時。\n合計：208人時+90人時=298人時。）\n",null,{"$f":"F42","v":0},{"$f":"F42","v":0}]
[null,"工作費（其他）",null,null,"人時",0,"為執行磨課師推動，協助推動相關工作，得編列工作費，為勞務型臨時人力，唯人力不與工讀費重複，以現行勞動基準法所訂每人每小時最低基本工資○○○元支給。\n(例：寫法與工作費（教材製作）相仿，注意工作內容及人時的計算方式。)",null,null,{"$f":"F43","v":0}]
[null,"工作費勞保費",null,null,"式",0,"臨時人力得編列勞保費，請詳列計算方式，參考人事費項目寫法。"]
[null,"工作費健保費",null,null,"式",0,"臨時人力若需編列健保費，請說明原因並詳列計算方式，參考人事費項目寫法。"]
[null,"工作費勞退金",null,null,"式",0,"臨時人力得編列勞退金，請詳列計算方式，參考人事費項目寫法。"]
[null,"工讀費(教材製作）",null,null,"人時",0,"為開設磨課師課程，協助課程錄製相關工作，得編列工讀費，為勞務型臨時人力，唯工讀費人力不與工作費重複，以現行勞動基準法所訂每人每小時最低基本工資1.2倍為支給上限，工讀費工資每小時○○○元支給。大專校院工讀費依規定支給。\n(例：寫法與工作費（教材製作）相仿，注意工作內容及人時的計算方式。)\n",null,{"$f":"F47","v":0},{"$f":"F47","v":0}]
[null,"工讀費（其他）",null,null,"人時",0,"為執行磨課師推動，協助推動相關工作，得編列工讀費，為勞務型臨時人力，唯工讀費人力不與工作費重複，以現行勞動基準法所訂每人每小時最低基本工資1.2倍為支給上限。工讀費工資每小時○○○元支給。大專校院工讀費依規定支給。\n(例：寫法與工作費（教材製作）相仿，注意工作內容及人時的計算方式。)\n",null,null,{"$f":"F48","v":0}]
[null,"工讀費勞保費",null,null,"式",0,"臨時人力得編列勞保費，請詳列計算方式，參考人事費項目寫法。"]
[null,"工讀費健保費",null,null,"式",0,"臨時人力若需編列健保費，請說明原因並詳列計算方式，參考人事費項目寫法。"]
[null,"工讀費勞退金",null,null,"式",0,"臨時人力得編列勞退金，請詳列計算方式，參考人事費項目寫法。"]
[null,"印刷費",null,null,"式",0,"為發展課程所需之相關印刷費用。\n（例：辦理課程研習營海報10張*500元=5,000元；研習會議資料50元*100份=5,000元；5,000+5,000=10,000元。）\n"]
[null,"資料蒐集費",null,1,"式",0,"核實報支，以新臺幣30,000元為限。"]
[null,"補充保費",null,null,"式",0,"已列健保費之臨時人力，不得重複編列補充保費，請詳列計算方式，確認驗算是否正確。\n（例：課程錄製費83,200元+講座鐘點費14,400元+諮詢出席費24,000元+主持費16,000元=137,600元；137,600元*1.91%=2,628元。）\n",null,null,{"$f":"ROUNDUP((J33+J35+J36+J37+J38+J39+J42+J43+J47+J48),0)","v":0}]
[null,"雜費",null,null,"式",0,"凡前項費用未列之辦公事務費用屬之。如文具用品、紙張、資訊耗材、資料夾、郵資等屬之。請條列採購品項、用途、單價、數量、小計，並於最後加總合計。\n"]
[null,"業務費小計",{"$nulls":3},{"$f":"SUM(F33:F55)","v":0},{"$nulls":4},{"$f":"SUM(K20:K55)","v":32000}]
["設備及投資",{"$nulls":3},"臺",0,"1.以補助課程製作所需設備項目為主，已獲得已獲得磨課師課程推動計畫補助之設備項目，本期不得重複申請，本部不補助平臺維運與建置相關費用。亦不得使用本部設備補助款採構一般/事務性設備(如印表機、投影機、單槍投影機、實驗桌椅..等一般教學設備)。各項目皆為單價在新臺幣10,000元以上，且使用年限在2年以上之軟硬體設備。桌上型電腦單價以不超過新台幣25,000元，以及筆記型電腦單價以不超過新台幣30,000元為限。\n2.設備項目(含規格)請勿指定廠牌(如hp ×××、Asus ×××、ipad、….等)。\n3.請條列採購品項、用途、單價、數量、小計，並請於最後加總合計。\n（例：課程製作剪輯後製設備，筆記型電腦2臺*30,000元=60,000元。）\n"]
[{"$nulls":4},"臺",0]
[null,"設備及投資小計",{"$nulls":3},{"$f":"SUM(F57:F58)","v":0}]
["    合    計",{"$nulls":4},{"$f":"SUM(F32,F56,F59)","v":0},{"$f":"CONCATENATE(\"人事費、業務費、設備及投資等3項合計（包括\",K4,\"、\",K5,\"、\",K6,\"等\",COUNTA(K4:K6),\"門課經費\",K56,\"元）。\")","v":"人事費、業務費、設備及投資等3項合計（包括精進課程名稱A、精進課程名稱B、精進課程名稱C等3門課經費32000元）。"}]
["已閱讀本計畫相關法規及參考文件"]
["☐","政府科學技術研究發展成果歸屬及運用辦法"]
["☐","磨課師課程智慧財產權議題參考"]
[]
["承辦                         主(會)計                         機關學校首長             "]
["單位                         單位                             或團體負責人             "]
["備註："]
["1、","同一計畫向本部及其他機關申請補助時，應於計畫項目經費申請表內，詳列向本部及其他機關申請補助之項目及金額，如有隱匿不實或造假情事，本部應撤銷該補助案件，並收回已撥付款項。"]
["2、","補助計畫除依本要點第4點規定之情形外，以不補助人事費、內部場地使用費及行政管理費為原則。"]
["3、","申請補助經費，其計畫執行涉及需依「政府機關政策文宣規劃執行注意事項」、預算法第62條之1及其執行原則等相關規定辦理者，應明確標示其為「廣告」，且揭示贊助機關（教育部）名稱，並不得以置入性行銷方式進行。     "]